fUST/lending_fUST_20240523
["ID","MTS","AMOUNT","RATE_DAILY","PERIOD"]
[327771665,1716468639901,-1107.52296556,0.00019178,2]
[327771666,1716468639911,-500.0,0.00019178,2]
[327771667,1716468639920,-1107.52296556,0.00019178,2]
[327771668,1716468639929,-1107.52296556,0.00019178,2]
[327771669,1716468639938,-500.0,0.00019178,2]
[327771670,1716468639948,-1107.52296556,0.00019178,2]
[327771671,1716468639957,-340.1373153,0.00019178,2]
[327771673,1716468639967,-500.0,0.00019178,2]
[327771674,1716468639977,-1107.52296556,0.00019178,2]
[327771675,1716468639986,-1107.52296556,0.00019178,2]
[327771676,1716468639996,-500.0,0.00019178,2]
[327771677,1716468640007,-1107.52296556,0.00019178,2]
[327771678,1716468640017,-1107.52296556,0.00019178,2]
[327771679,1716468640026,-500.0,0.00019178,2]
[327771680,1716468640035,-1107.52296556,0.00019178,2]
[327771681,1716468640044,-1107.52296556,0.00019178,2]
[327771682,1716468640054,-553.18735921,0.00019178,2]
[327771683,1716468640064,-1107.52296556,0.00019178,2]
[327771684,1716468640073,-1107.52296556,0.00019178,2]
[327771685,1716468640083,-1107.52296556,0.00019178,2]
[327771686,1716468640093,-1107.52296556,0.00019178,2]
[327771687,1716468640102,-1107.52296556,0.00019178,2]
[327771688,1716468640112,-1107.52296556,0.00019178,2]
[327771689,1716468640121,-1107.52296556,0.00019178,2]
[327771690,1716468640131,-1107.52296556,0.00019178,2]
[327771691,1716468640140,-1107.52296556,0.00019178,2]
[327771692,1716468640150,-1107.52296556,0.00019178,2]
[327771693,1716468640159,-1107.52296556,0.00019178,2]
[327771694,1716468640169,-1107.52296556,0.00019178,2]
[327771695,1716468640178,-1107.52296556,0.00019178,2]
[327771696,1716468640188,-1107.52296556,0.00019178,2]
[327771697,1716468640198,-1107.52296556,0.00019178,2]
[327771698,1716468640208,-1107.52296556,0.00019178,2]
[327771699,1716468640217,-1107.52296556,0.00019178,2]
[327771700,1716468640226,-1107.52296556,0.00019178,2]
[327771701,1716468640236,-1107.52296556,0.00019178,2]
[327771702,1716468640246,-1024.45874316,0.00019178,2]
[327771703,1716468640257,-1024.45874316,0.00019178,2]
[327771704,1716468640267,-1024.45874316,0.00019178,2]
[327771705,1716468640277,-1024.45874316,0.00019178,2]
[327771706,1716468640286,-1024.45874316,0.00019178,2]
[327771707,1716468640295,-1024.45874316,0.00019178,2]
[327771708,1716468640305,-1024.45874316,0.00019178,2]
[327771709,1716468640315,-1024.45874316,0.00019178,2]
[327771710,1716468640324,-1024.45874316,0.00019178,2]
[327771711,1716468640334,-1024.45874313,0.00019178,2]
[327771712,1716468640343,-500.0,0.00019178,2]
[327771713,1716468640353,-500.0,0.00019178,2]
[327771714,1716468640362,-500.0,0.00019178,2]
[327771715,1716468640372,-500.0,0.00019178,2]
[327771716,1716468640381,-307.99737685,0.00019178,2]
[327771717,1716468640391,-485.5925634,0.00019178,2]
[327771718,1716468640401,-438.778242,0.00019178,2]
[327771719,1716468640414,-377.38605831,0.00019178,2]
[327771720,1716468640424,-151.0,0.00019178,2]
[327771721,1716468640434,-151.0,0.00019178,2]
[327771722,1716468640443,-151.0,0.00019178,2]
[327771723,1716468640452,-151.0,0.00019178,2]
[327771724,1716468640462,-151.0,0.00019178,2]
[327771725,1716468640471,-151.0,0.00019178,2]
[327771726,1716468640483,-151.0,0.00019178,2]
[327771727,1716468640492,-152.745599,0.00019178,2]
[327771728,1716468640502,-151.0,0.00019178,2]
[327771729,1716468640513,-151.0,0.00019178,2]
[327771730,1716468640523,-151.0,0.00019178,2]
[327771731,1716468640533,-151.0,0.00019178,2]
[327771732,1716468640543,-151.0,0.00019178,2]
[327771733,1716468640552,-151.0,0.00019178,2]
[327771734,1716468640563,-159.469878,0.00019178,2]
[327771735,1716468640572,-197.61848,0.00019178,2]
[327771736,1716468640582,-197.61848,0.00019178,2]
[327771737,1716468640591,-197.61848,0.00019178,2]
[327771738,1716468640601,-197.61848,0.00019178,2]
[327771739,1716468640611,-197.61848,0.00019178,2]
[327771740,1716468640620,-197.61848,0.00019178,2]
[327771741,1716468640630,-151.0,0.00019178,2]
[327771742,1716468640639,-155.943263,0.00019178,2]
[327771743,1716468640649,-151.0,0.00019178,2]
[327771744,1716468640658,-151.0,0.00019178,2]
[327771745,1716468640667,-151.0,0.00019178,2]
[327771746,1716468640677,-151.0,0.00019178,2]
[327771747,1716468640687,-151.0,0.00019178,2]
[327771748,1716468640696,-151.0,0.00019178,2]
[327771749,1716468640706,-151.0,0.00019178,2]
[327771750,1716468640715,-151.0,0.00019178,2]
[327771752,1716468640724,-285.539796,0.00019178,2]
[327771753,1716468640734,-151.0,0.00019178,2]
[327771754,1716468640743,-151.0,0.00019178,2]
[327771755,1716468640753,-151.0,0.00019178,2]
[327771756,1716468640763,-192.43916,0.00019178,2]
[327771757,1716468640773,-184.690376,0.00019178,2]
[327771758,1716468640782,-184.690376,0.00019178,2]
[327771759,1716468640796,-184.690376,0.00019178,2]
[327771760,1716468640805,-184.690376,0.00019178,2]
[327771761,1716468640815,-184.690376,0.00019178,2]
[327771762,1716468640824,-184.690376,0.00019178,2]
[327771763,1716468640834,-184.690376,0.00019178,2]
[327771764,1716468640843,-184.690376,0.00019178,2]
[327771765,1716468640853,-151.0,0.00019178,2]
[327771766,1716468640863,-213.258139,0.00019178,2]
[327771767,1716468640873,-151.0,0.00019178,2]
[327771768,1716468640883,-151.0,0.00019178,2]
[327771769,1716468640892,-151.0,0.00019178,2]
[327771770,1716468640902,-151.0,0.00019178,2]
[327771771,1716468640911,-151.0,0.00019178,2]
[327771772,1716468640920,-223.333323,0.00019178,2]
[327771773,1716468640930,-152.002366,0.00019178,2]
[327771774,1716468640939,-151.0,0.00019178,2]
[327771775,1716468640949,-151.0,0.00019178,2]
[327771776,1716468640959,-256.403616,0.00019178,2]
[327771778,1716468640969,-151.0,0.00019178,2]
[327771779,1716468640979,-151.0,0.00019178,2]
[327771780,1716468640988,-151.0,0.00019178,2]
[327771781,1716468640998,-151.0,0.00019178,2]
[327771782,1716468641008,-151.0,0.00019178,2]
[327771783,1716468641018,-209.328963,0.00019178,2]
[327771784,1716468641027,-558.683763,0.00019178,2]
[327771785,1716468641036,-558.683763,0.00019178,2]
[327771786,1716468641046,-558.683763,0.00019178,2]
[327771787,1716468641055,-558.683763,0.00019178,2]
[327771789,1716468641064,-558.683763,0.00019178,2]
[327771790,1716468641074,-558.683763,0.00019178,2]
[327771791,1716468641084,-558.683763,0.00019178,2]
[327771792,1716468641093,-558.683763,0.00019178,2]
[327771793,1716468641103,-438.327119,0.00019178,2]
[327771794,1716468641113,-438.327119,0.00019178,2]
[327771795,1716468641122,-438.327119,0.00019178,2]
[327771796,1716468641132,-438.327119,0.00019178,2]
[327771797,1716468641142,-438.327119,0.00019178,2]
[327771798,1716468641151,-438.327119,0.00019178,2]
[327771799,1716468641160,-165.219429,0.00019178,2]
[327771801,1716468641170,-438.327119,0.00019178,2]
[327771802,1716468641178,-165.219429,0.00019178,2]
[327771804,1716468641188,-438.327119,0.00019178,2]
[327771806,1716468641197,-165.219429,0.00019178,2]
[327771807,1716468641207,-165.219429,0.00019178,2]
[327771808,1716468641217,-165.219429,0.00019178,2]
[327771809,1716468641227,-165.219429,0.00019178,2]
[327771810,1716468641237,-165.219429,0.00019178,2]
[327771811,1716468641246,-165.219429,0.00019178,2]
[327771812,1716468641256,-174.024519,0.00019178,2]
[327771813,1716468641265,-174.024519,0.00019178,2]
[327771814,1716468641275,-174.024519,0.00019178,2]
[327771815,1716468641284,-174.024519,0.00019178,2]
[327771816,1716468641392,-174.024519,0.00019178,2]
[327771817,1716468641403,-174.024519,0.00019178,2]
[327771818,1716468641412,-174.024519,0.00019178,2]
[327771819,1716468641421,-174.024519,0.00019178,2]
[327771820,1716468641430,-151.0,0.00019178,2]
[327771821,1716468641439,-151.0,0.00019178,2]
[327771822,1716468641449,-151.0,0.00019178,2]
[327771823,1716468641458,-151.0,0.00019178,2]
[327771824,1716468641467,-151.0,0.00019178,2]
[327771825,1716468641476,-151.0,0.00019178,2]
[327771826,1716468641485,-151.0,0.00019178,2]
[327771827,1716468641495,-151.0,0.00019178,2]
[327771828,1716468641504,-151.0,0.00019178,2]
[327771829,1716468641514,-151.0,0.00019178,2]
[327771830,1716468641523,-151.0,0.00019178,2]
[327771831,1716468641533,-151.0,0.00019178,2]
[327771832,1716468641542,-151.0,0.00019178,2]
[327771833,1716468641551,-151.0,0.00019178,2]
[327771834,1716468641561,-350.504285,0.00019178,2]
[327771835,1716468641571,-350.504285,0.00019178,2]
[327771836,1716468641580,-350.504285,0.00019178,2]
[327771837,1716468641589,-350.504285,0.00019178,2]
[327771838,1716468641598,-350.504285,0.00019178,2]
[327771839,1716468641607,-350.504285,0.00019178,2]
[327771840,1716468641616,-350.504285,0.00019178,2]
[327771841,1716468641625,-350.504285,0.00019178,2]
[327771842,1716468641635,-350.504285,0.00019178,2]
[327771843,1716468641643,-350.504285,0.00019178,2]
[327771844,1716468641653,-151.0,0.00019178,2]
[327771845,1716468641663,-151.0,0.00019178,2]
[327771846,1716468641672,-151.0,0.00019178,2]
[327771847,1716468641682,-151.0,0.00019178,2]
[327771848,1716468641692,-151.0,0.00019178,2]
[327771849,1716468641701,-509.83734,0.00019178,2]
[327771850,1716468641711,-509.83734,0.00019178,2]
[327771851,1716468641721,-509.83734,0.00019178,2]
[327771852,1716468641730,-509.83734,0.00019178,2]
[327771853,1716468641740,-509.83734,0.00019178,2]
[327771854,1716468641750,-509.83734,0.00019178,2]
[327771855,1716468641761,-509.83734,0.00019178,2]
[327771856,1716468641770,-509.83734,0.00019178,2]
[327771857,1716468641781,-509.83734,0.00019178,2]
[327771858,1716468641795,-509.83734,0.00019178,2]
[327771859,1716468641804,-255.31941,0.00019178,2]
[327771860,1716468641813,-255.31941,0.00019178,2]
[327771861,1716468641823,-255.31941,0.00019178,2]
[327771862,1716468641834,-255.31941,0.00019178,2]
[327771863,1716468641844,-255.31941,0.00019178,2]
[327771864,1716468641854,-255.31941,0.00019178,2]
[327771865,1716468641864,-255.31941,0.00019178,2]
[327771866,1716468641874,-255.31941,0.00019178,2]
[327771867,1716468641883,-255.31941,0.00019178,2]
[327771868,1716468641893,-255.31941,0.00019178,2]
[327771869,1716468641903,-177.601101,0.00019178,2]
[327771870,1716468641912,-163.4924184,0.00019178,2]
[327771871,1716468641922,-151.0,0.00019178,2]
[327771872,1716468641932,-151.0,0.00019178,2]
[327771873,1716468641942,-151.0,0.00019178,2]
[327771874,1716468641951,-151.0,0.00019178,2]
[327771875,1716468641961,-167.197509,0.00019178,2]
[327771876,1716468641971,-492.1637275,0.000199,2]
[327771877,1716468641981,-151.0,0.000199,2]
[327771878,1716468641990,-558.683763,0.000199,2]
[327771879,1716468642000,-558.683763,0.000199,2]
[327771880,1716468642013,-438.327119,0.000199,2]
[327771881,1716468642024,-438.327119,0.000199,2]
[327771882,1716468642034,-165.219429,0.000199,2]
[327771883,1716468642044,-165.219429,0.000199,2]
[327771884,1716468642053,-174.024519,0.000199,2]
[327771885,1716468642063,-174.024519,0.000199,2]
[327771886,1716468642073,-283.68900956,0.0001993,2]
[327771887,1716468642083,-151.0,0.0001993,2]
[327771888,1716468642092,-151.0,0.0001993,2]
[327771889,1716468642102,-151.0,0.0001993,2]
[327771890,1716468642111,-151.0,0.0001993,2]
[327771891,1716468642121,-197.61848,0.0001993,2]
[327771892,1716468642131,-197.61848,0.0001993,2]
[327771893,1716468642140,-151.0,0.0001993,2]
[327771894,1716468642149,-151.0,0.0001993,2]
[327771895,1716468642159,-184.690376,0.0001993,2]
[327771896,1716468642169,-184.690376,0.0001993,2]
[327771897,1716468642179,-151.0,0.0001993,2]
[327771898,1716468642188,-151.0,0.0001993,2]
[327771899,1716468642197,-350.504285,0.0001993,2]
[327771900,1716468642207,-350.504285,0.0001993,2]
[327771901,1716468642217,-151.0,0.0001993,2]
[327771902,1716468642227,-509.83734,0.0001993,2]
[327771903,1716468642236,-103.25434869,0.0001993,2]
[327771904,1716468642817,-406.58299131,0.0001993,2]
[327771905,1716468642831,-255.31941,0.0001993,2]
[327771906,1716468642842,-255.31941,0.0001993,2]
[327771907,1716468642852,-227.42619334,0.00019931,2]
[327771908,1716468642863,-260.29404441,0.00019931,2]
[327771909,1716468642873,-155.03872613,0.00019931,2]
[327771910,1716468642883,-317.42286275,0.00019931,2]
[327771911,1716468642893,-309.59752322,0.00019931,2]
[327771912,1716468642902,-277.929268,0.00019931,2]
[327771913,1716468642912,-487.40885872,0.00019931,2]
[327771920,1716468643498,-3374.1359825,0.00019931,2]
[327771929,1716468644312,-5068.01358387,0.00019931,2]
[327771930,1716468644323,-282.07328416,0.00019931,2]
[327771931,1716468644333,-155.91138342,0.00019931,2]
[327771932,1716468644344,-707.91708361,0.00019931,2]
[327771933,1716468644354,-168.91432574,0.00019931,2]
[327771934,1716468644364,-155.18928684,0.00019932,2]
[327771935,1716468644373,-155.34816039,0.00019932,2]
[327771936,1716468644383,-155.94960478,0.00019933,2]
[327771937,1716468644393,-302.13395234,0.00019933,2]
[327771938,1716468644403,-942.90397425,0.00019933,2]
[327771939,1716468644413,-9716.06669081,0.00019995,2]
[327771940,1716468644422,-9405.18230487,0.00019995,2]
[327771941,1716468644432,-151.0,0.00019995,2]
[327771942,1716468644443,-243.107888,0.00019995,2]
[327771943,1716468644452,-151.0,0.00019995,2]
[327771944,1716468644462,-197.61848,0.00019995,2]
[327771945,1716468644472,-197.61848,0.00019995,2]
[327771946,1716468644482,-151.0,0.00019995,2]
[327771947,1716468644492,-151.0,0.00019995,2]
[327771948,1716468644502,-184.690376,0.00019995,2]
[327771949,1716468644514,-184.690376,0.00019995,2]
[327771950,1716468644524,-151.0,0.00019995,2]
[327771951,1716468644534,-558.683763,0.00019995,2]
[327771952,1716468644544,-558.683763,0.00019995,2]
[327771953,1716468644554,-438.327119,0.00019995,2]
[327771954,1716468644565,-438.327119,0.00019995,2]
[327771955,1716468644575,-165.219429,0.00019995,2]
[327771956,1716468644585,-165.219429,0.00019995,2]
[327771957,1716468644595,-174.024519,0.00019995,2]
[327771958,1716468644606,-174.024519,0.00019995,2]
[327771959,1716468644616,-151.0,0.00019995,2]
[327771960,1716468644626,-151.0,0.00019995,2]
[327771961,1716468644636,-350.504285,0.00019995,2]
[327771962,1716468644646,-350.504285,0.00019995,2]
[327771963,1716468644656,-151.0,0.00019995,2]
[327771964,1716468644667,-509.83734,0.00019995,2]
[327771965,1716468644678,-509.83734,0.00019995,2]
[327771966,1716468644688,-255.31941,0.00019995,2]
[327771967,1716468644699,-255.31941,0.00019995,2]
[327771968,1716468644708,-155.75665237,0.0002,2]
[327771969,1716468644718,-172.7868908,0.0002,2]
[327771970,1716468644728,-287.04086809,0.0002,2]
[327771971,1716468644737,-400.0,0.0002,2]
[327771972,1716468644747,-286.46520993,0.0002,2]
[327771973,1716468644757,-157.56342795,0.0002,2]
[327771974,1716468644767,-1393.11980727,0.0002,2]
[327771975,1716468644838,-3404.65865642,0.0002,2]
[327771976,1716468644850,-284.76668766,0.0002,2]
[327771977,1716468644859,-29089.65236561,0.0002,2]
[327771978,1716468645018,-6990.3,0.0002,2]
[327771979,1716468645030,-1715.92634972,0.0002,2]
[327772004,1716468646947,-212.30222516,0.00019178,2]
[327772005,1716468646957,-500.0,0.00019178,2]
[327772006,1716468646967,-500.0,0.00019178,2]
[327772007,1716468646977,-500.0,0.00019178,2]
[327772008,1716468646986,-3547.98942403,0.0002,2]
[327772009,1716468646995,-4248.96721176,0.0002,2]
[327772010,1716468647005,-187.71376422,0.0002,4]
[327772011,1716468647015,-633.90016098,0.0002,2]
[327772012,1716468647025,-156.821,0.0002,2]
[327772013,1716468647034,-155.96251668,0.0002,2]
[327772014,1716468647044,-2734.12166867,0.0002,2]
[327772016,1716468700294,302.4700538,9.999e-05,2]
[327772018,1716469088307,522.92168457,9.999e-05,2]
[327772020,1716469093133,529.13,0.00010959,2]
[327772021,1716469112408,316.44797131,9.999e-05,2]
[327772022,1716469155446,283.77206656,0.000137,2]
[327772023,1716469192804,624.597248,0.00013699,2]
[327772024,1716469203872,250.0,0.00013609,2]
[327772025,1716469260218,3046.7707575,0.000135,2]
[327772026,1716469289822,24900.0,0.000135,2]
[327772031,1716469331319,1002.7792511,0.000135,2]
[327772033,1716469468129,267.1970171,0.00013699,2]
[327772053,1716469557091,-1765.52274315,0.00026366,30]
[327772150,1716469772095,6436.3764861,0.00013598,2]
[327772151,1716469801472,312.298624,0.00013699,2]
[327772278,1716469833836,-204.41469054,0.00014387,2]
[327772281,1716469833846,-150.88183199,0.000144,2]
[327772284,1716469833860,-203.81678831,0.000144,2]
[327772287,1716469833870,-7020.0,0.00014477,2]
[327772290,1716469833879,-1129.99653883,0.00014478,2]
[327772294,1716469833891,-568.31904852,0.00014478,2]
[327772297,1716469833903,-4885.34208,0.00014478,2]
[327772299,1716469833915,-52845.84964723,0.00014478,2]
[327772301,1716469833924,-9403.91722042,0.00014479,2]
[327772304,1716469833933,-161.79997868,0.000145,2]
[327772307,1716469833942,-317.06957206,0.00014501,2]
[327772310,1716469833951,-14198.51860009,0.00014501,2]
[327772311,1716469833961,-190.02760697,0.000156,2]
[327772314,1716469833970,-155.19028117,0.00015848,2]
[327772316,1716469833980,-163.69818826,0.00015849,2]
[327772431,1716469839607,-114.23107974,0.00015849,2]
[327772432,1716469839620,-309.59752322,0.00015849,2]
[327772433,1716469839630,-155.03872613,0.00015849,2]
[327772434,1716469839640,-260.29404441,0.00015849,2]
[327772435,1716469839650,-303.12637776,0.00015849,2]
[327772436,1716469839660,-780.31224874,0.00015849,2]
[327772437,1716469839672,-226.21427342,0.00015849,2]
[327772438,1716469839682,-523.77572966,0.00015849,2]
[327772439,1716469839692,-487.40885872,0.0001585,2]
[327772441,1716469839701,-227.42619334,0.0001585,2]
[327772443,1716469839711,-10106.30206333,0.00015851,2]
[327772445,1716469839720,-1173.4604615,0.00016343,2]
[327772447,1716469839730,-301.72923525,0.00016343,2]
[327772449,1716469839740,-234.7848583,0.00016343,2]
[327772451,1716469839749,-285.74827739,0.00016343,2]
[327772453,1716469839759,-217.53237512,0.00016667,2]
[327772454,1716469839768,-354.69862029,0.00017417,2]
[327772455,1716469839779,-910.6581071,0.00017999,2]
[327772456,1716469839789,-155.56310174,0.00017999,2]
[327772457,1716469839798,-163.71907756,0.00017999,2]
[327772458,1716469839808,-207.96022806,0.00017999,2]
[327772459,1716469839818,-237.16938398,0.00017999,2]
[327772460,1716469839828,-1143.36406491,0.00018,2]
[327772461,1716469839837,-1515.77233961,0.000189,2]
[327772462,1716469839847,-162.61642107,0.00019,2]
[327772463,1716469839856,-186.24296536,0.00019176,2]
[327772464,1716469839871,-2467.15169101,0.00019176,2]
[327772465,1716469839880,-208.36578461,0.00019176,2]
[327772466,1716469839890,-309.88090155,0.00019176,2]
[327772467,1716469839898,-155.24956511,0.00019176,2]
[327772468,1716469839908,-236.8730716,0.00019176,2]
[327772469,1716469839918,-631.63667576,0.00019176,2]
[327772470,1716469839927,-181.49361007,0.00019176,2]
[327772471,1716469839936,-531.82973432,0.00019176,2]
[327772472,1716469839945,-309.5048201,0.00019176,2]
[327772473,1716469839955,-311.06332629,0.00019176,2]
[327772474,1716469839964,-725.0573975,0.00019176,2]
[327772475,1716469839974,-2635.15875922,0.00019176,2]
[327772476,1716469839984,-274.0226886,0.00019176,2]
[327772477,1716469839994,-457.28419898,0.00019176,2]
[327772478,1716469840004,-10454.14770375,0.00019176,2]
[327772479,1716469840013,-189.66516889,0.00019177,2]
[327772480,1716469840023,-269.90429986,0.00019177,2]
[327772481,1716469840033,-859.04349221,0.00019177,2]
[327772482,1716469840043,-500.0,0.00019178,2]
[327772483,1716469840052,-166.07917922,0.00019178,2]
[327772484,1716469840061,-561.63397678,0.00019178,2]
[327772485,1716469840071,-500.0,0.00019178,2]
[327772486,1716469840081,-500.0,0.00019178,2]
[327772487,1716469840090,-500.0,0.00019178,2]
[327772488,1716469840100,-469.44040765,0.00019178,2]
[327772489,1716469840227,-500.0,0.00019178,2]
[327772490,1716469840238,-500.0,0.00019178,2]
[327772491,1716469840248,-541.33114069,0.00019178,2]
[327772492,1716469840260,-500.0,0.00019178,2]
[327772493,1716469840270,-500.0,0.00019178,2]
[327772494,1716469840280,-500.0,0.00019178,2]
[327772495,1716469840289,-500.0,0.00019178,2]
[327772496,1716469840299,-500.0,0.00019178,2]
[327772497,1716469840308,-500.0,0.00019178,2]
[327772498,1716469840318,-500.0,0.00019178,2]
[327772499,1716469840328,-500.0,0.00019178,2]
[327772500,1716469840338,-500.0,0.00019178,2]
[327772501,1716469840348,-500.0,0.00019178,2]
[327772502,1716469840361,-500.0,0.00019178,2]
[327772503,1716469840371,-500.0,0.00019178,2]
[327772504,1716469840381,-500.0,0.00019178,2]
[327772505,1716469840391,-500.0,0.00019178,2]
[327772506,1716469840401,-449.49522097,0.00019178,2]
[327772507,1716469840411,-218.50340417,0.00019178,2]
[327772508,1716469840421,-708.34708974,0.00019178,2]
[327772509,1716469840432,-708.34708974,0.00019178,2]
[327772510,1716469840442,-708.34708974,0.00019178,2]
[327772511,1716469840452,-708.34708974,0.00019178,2]
[327772512,1716469840462,-708.34708974,0.00019178,2]
[327772513,1716469840473,-708.34708974,0.00019178,2]
[327772514,1716469840483,-708.34708974,0.00019178,2]
[327772515,1716469840493,-708.34708974,0.00019178,2]
[327772516,1716469840503,-708.34708974,0.00019178,2]
[327772517,1716469840514,-708.34708974,0.00019178,2]
[327772518,1716469840525,-708.34708974,0.00019178,2]
[327772519,1716469840536,-708.34708974,0.00019178,2]
[327772520,1716469840547,-708.34708974,0.00019178,2]
[327772521,1716469840558,-708.34708974,0.00019178,2]
[327772522,1716469840568,-708.34708974,0.00019178,2]
[327772523,1716469840578,-708.34708974,0.00019178,2]
[327772524,1716469840589,-708.34708974,0.00019178,2]
[327772525,1716469840599,-708.34708974,0.00019178,2]
[327772526,1716469840613,-708.34708974,0.00019178,2]
[327772527,1716469840624,-708.34708974,0.00019178,2]
[327772528,1716469840634,-708.34708974,0.00019178,2]
[327772529,1716469840644,-708.34708974,0.00019178,2]
[327772530,1716469840653,-708.34708974,0.00019178,2]
[327772531,1716469840663,-708.34708974,0.00019178,2]
[327772532,1716469840673,-708.34708974,0.00019178,2]
[327772533,1716469840683,-708.34708974,0.00019178,2]
[327772534,1716469840693,-708.34708974,0.00019178,2]
[327772535,1716469840703,-708.34708974,0.00019178,2]
[327772536,1716469840713,-708.34708974,0.00019178,2]
[327772537,1716469840722,-708.34708974,0.00019178,2]
[327772538,1716469840732,-708.34708974,0.00019178,2]
[327772539,1716469840741,-708.34708974,0.00019178,2]
[327772540,1716469840751,-708.34708974,0.00019178,2]
[327772541,1716469840760,-708.34708974,0.00019178,2]
[327772542,1716469840769,-679.77510629,0.00019178,2]
[327772543,1716469840779,-679.77510629,0.00019178,2]
[327772544,1716469840789,-679.77510629,0.00019178,2]
[327772545,1716469840798,-679.77510629,0.00019178,2]
[327772546,1716469840808,-679.77510629,0.00019178,2]
[327772547,1716469840817,-679.77510629,0.00019178,2]
[327772548,1716469840827,-679.77510629,0.00019178,2]
[327772549,1716469840836,-679.77510629,0.00019178,2]
[327772550,1716469840847,-679.77510629,0.00019178,2]
[327772551,1716469840856,-679.77510629,0.00019178,2]
[327772552,1716469840871,-679.77510629,0.00019178,2]
[327772553,1716469840880,-679.77510629,0.00019178,2]
[327772554,1716469840890,-679.77510629,0.00019178,2]
[327772555,1716469840899,-679.77510629,0.00019178,2]
[327772556,1716469840909,-679.77510629,0.00019178,2]
[327772557,1716469840918,-679.77510629,0.00019178,2]
[327772558,1716469840927,-679.77510629,0.00019178,2]
[327772559,1716469840936,-174.07393,0.00019178,2]
[327772560,1716469840946,-456.01641003,0.00019799,2]
[327772561,1716469840955,-4225.76789331,0.00019805,2]
[327772562,1716469840965,-151.0,0.00019887,2]
[327772563,1716469840974,-151.0,0.00019887,2]
[327772564,1716469840984,-156.25724294,0.0001993,2]
[327772565,1716469840994,-417.48839794,0.00019935,2]
[327772566,1716469841004,-2408.54357645,0.00019998,2]
[327772567,1716469841013,-309.9844682,0.00019998,2]
[327772568,1716469841023,-155.02790502,0.00019998,2]
[327772569,1716469841032,-844.70416567,0.00019998,2]
[327772570,1716469841042,-155.36778921,0.00019999,2]
[327772571,1716469841052,-1892.55724184,0.00019999,2]
[327772572,1716469841062,-178.7337566,0.00019999,2]
[327772573,1716469841071,-173.02606825,0.00019999,2]
[327772574,1716469841081,-309.86659825,0.00019999,2]
[327772575,1716469841090,-10735.66002005,0.0002,2]
[327772576,1716469841100,-1841.78491325,0.0002,2]
[327772577,1716469841111,-50189.81725092,0.0002,2]
[327772578,1716469841121,-184.39231048,0.0002,2]
[327772579,1716469841130,-156.821,0.0002,2]
[327772580,1716469841140,-3665.46444459,0.0002,2]
[327772581,1716469841149,-12633.78697437,0.0002,2]
[327772582,1716469841159,-309.93802479,0.0002,2]
[327772583,1716469841169,-4813.70106343,0.0002,2]
[327772584,1716469841178,-2334.67386499,0.0002,2]
[327772585,1716469841192,-151.0,0.0002,2]
[327772586,1716469841202,-151.0,0.0002,2]
[327772587,1716469841212,-151.0,0.0002,2]
[327772588,1716469841223,-164.184807,0.0002,2]
[327772591,1716469841233,-724.963052,0.0002,2]
[327772592,1716469841243,-724.963052,0.0002,2]
[327772593,1716469841252,-724.963052,0.0002,2]
[327772594,1716469841264,-724.963052,0.0002,2]
[327772595,1716469841273,-151.0,0.0002,2]
[327772596,1716469841283,-151.0,0.0002,2]
[327772597,1716469841292,-439.0404312,0.0002,5]
[327772598,1716469841302,-281.0,0.0002,2]
[327772599,1716469841311,-223.473506,0.0002,2]
[327772600,1716469841320,-223.473506,0.0002,2]
[327772601,1716469841330,-223.473506,0.0002,2]
[327772602,1716469841339,-223.473506,0.0002,2]
[327772603,1716469841348,-175.330847,0.0002,2]
[327772604,1716469841362,-175.330847,0.0002,2]
[327772605,1716469841372,-175.330847,0.0002,2]